[Event "FIDE World Cadets GU12 2022"]
[Site "Batumi"]
[Date "2022.09.24"]
[Round "8.15"]
[White "Urangoo, Gurvanbaatar"]
[Black "Aravindakshan, Sahana"]
[Result "1-0"]
[ECO "C95"]
[WhiteElo "1391"]
[BlackElo "1776"]
[Annotator "NA RC COMBH"]
[PlyCount "73"]
[EventDate "2022.09.16"]
[EventType "swiss"]
[EventCountry "GEO"]
[SourceTitle "playchess.com"]
[Source "ChessBase"]
[SourceQuality "1"]
[TimeControl "5400+30"]

1. e4 {[%emt 0:01:00]} e5 {[%emt 0:01:00]} 2. Nf3 {[%emt 0:00:30]} Nc6 {[%emt 0:00:30]} 3. Bb5 {[%emt 0:00:30]} a6 {[%emt 0:00:30]} 4. Ba4 {[%emt 0:00:30]} Nf6 {[%emt 0:00:30]} 5. O-O {[%emt 0:00:30]} Be7 {[%emt 0:00:00]} 6. Re1 {[%emt 0:00:00]} b5 {[%emt 0:00:00]} 7. Bb3 {[%emt 0:00:00]} d6 {[%emt 0:00:00]} 8. c3 {[%emt 0:00:30]} O-O {[%emt 0:00:00]} 9. h3 {[%emt 0:00:30]} Nb8 {[%emt 0:00:00]} 10. d4 {[%emt 0:00:30]} Nbd7 {[%emt 0:00:00]} 11. a4 {[%emt 0:02:30]} Bb7 {[%emt 0:00:30]} 12. Nbd2 {[%emt 0:00:30]} c5 {[%emt 0:04:30]} 13. d5 {[%emt 0:05:30]} c4 {[%emt 0:00:30]} 14. Bc2 {[%emt 0:00:00]} Re8 {[%emt 0:00:30]} 15. Nf1 {[%emt 0:01:00]} Bf8 {[%emt 0:00:30]} 16. Ng3 {[%emt 0:00:30]} g6 {[%emt 0:00:30]} 17. Nh2 {[%emt 0:01:30]} Bg7 {[%emt 0:03:30]} 18. Ng4 {[%emt 0:03:30]} Nxg4 {[%emt 0:01:30]} 19. Qxg4 {[%emt 0:01:30]} Nc5 {[%emt 0:08:30]} 20. Be3 {[%emt 0:11:30]} Qc7 {[%emt 0:01:30]} 21. h4 {[%emt 0:02:30]} h5 {[%emt 0:05:30]} 22. Qe2 {[%emt 0:08:30]} Bf6 {[%emt 0:06:30]} 23. Bh6 {[%emt 0:07:30]} Kh7 {[%emt 0:18:30]} 24. Nxh5 {[%emt 0:03:30]} gxh5 {[%emt 0:02:30]} 25. Qxh5 {[%emt 0:00:00]} Bg7 {[%emt 0:04:30]} 26. Bd2+ {[%emt 0:17:00]} Kg8 {[%emt 0:00:30]} 27. Re3 {[%emt 0:00:30]} f6 {[%emt 0:04:30]} 28. Rg3 {[%emt 0:01:30]} Qf7 {[%emt 0:00:30]} 29. Rg6 {[%emt 0:00:30]} Re7 {[%emt 0:07:30]} 30. Bh6 {[%emt 0:02:30]} Qf8 {[%emt 0:00:30]} 31. Re1 {[%emt 0:01:30]} Bc8 {[%emt 0:06:30]} 32. Re3 {[%emt 0:00:30]} Raa7 {[%emt 0:03:30]} 33. Rf3 {[%emt 0:00:30]} Rf7 {[%emt 0:05:50]} 34. Rfg3 {[%emt 0:05:30]} Rae7 {[%emt 0:03:51]} 35. Bxg7 {[%emt 0:00:30]} Rxg7 {[%emt 0:00:32]} 36. Rh6 {[%emt 0:00:00]} Rxg3 {[%emt 0:08:57]} 37. Rh8+ {[%emt 0:00:00]} 1-0

[Event "FIDE World Cadets GU12 2022"]
[Site "Batumi"]
[Date "2022.09.24"]
[Round "8.16"]
[White "Haasova, Timea"]
[Black "Rathnayake, R M Dulinma Hemalni"]
[Result "1-0"]
[ECO "D05"]
[WhiteElo "1707"]
[BlackElo "1321"]
[Annotator "NA RC COMBH"]
[PlyCount "115"]
[EventDate "2022.09.16"]
[EventType "swiss"]
[EventCountry "GEO"]
[SourceTitle "playchess.com"]
[Source "ChessBase"]
[SourceQuality "1"]
[TimeControl "5400+30"]

1. d4 {[%emt 0:01:00]} d5 {[%emt 0:01:00]} 2. Nf3 {[%emt 0:00:00]} Nf6 {[%emt 0:00:30]} 3. e3 {[%emt 0:00:00]} e6 {[%emt 0:03:30]} 4. Bd3 {[%emt 0:00:30]} c5 {[%emt 0:00:30]} 5. c3 {[%emt 0:00:00]} Nc6 {[%emt 0:01:30]} 6. Nbd2 {[%emt 0:00:00]} Be7 {[%emt 0:01:30]} 7. O-O {[%emt 0:00:30]} Qc7 {[%emt 0:00:30]} 8. dxc5 {[%emt 0:03:30]} e5 {[%emt 0:04:30]} 9. e4 {[%emt 0:02:30]} Bxc5 {[%emt 0:04:30]} 10. exd5 {[%emt 0:08:30]} Nxd5 {[%emt 0:00:30]} 11. Ne4 {[%emt 0:01:30]} Bb6 {[%emt 0:01:30]} 12. Bc4 {[%emt 0:01:30]} Nf6 {[%emt 0:06:30]} 13. Nd6+ {[%emt 0:02:30]} Ke7 {[%emt 0:00:30]} 14. Nxf7 {[%emt 0:04:30]} Rf8 {[%emt 0:00:30]} 15. N7g5 {[%emt 0:13:30]} h6 {[%emt 0:01:30]} 16. Nh3 {[%emt 0:07:30]} Bxh3 {[%emt 0:01:30]} 17. gxh3 {[%emt 0:00:30]} Na5 {[%emt 0:18:30]} 18. Bd3 {[%emt 0:08:30]} Rfe8 {[%emt 0:13:30]} 19. Nxe5 {[%emt 0:03:30]} Kf8 {[%emt 0:01:30]} 20. Ng6+ {[%emt 0:02:30]} Kg8 {[%emt 0:01:30]} 21. Bf4 {[%emt 0:01:30]} Qd7 {[%emt 0:00:30]} 22. b4 {[%emt 0:03:30]} Nc6 {[%emt 0:04:30]} 23. Qb3+ {[%emt 0:01:30]} Nd5 {[%emt 0:01:30]} 24. Bc4 {[%emt 0:01:30]} Kh7 {[%emt 0:00:30]} 25. Bxd5 {[%emt 0:01:30]} Kxg6 {[%emt 0:00:30]} 26. Rad1 {[%emt 0:05:30]} Qf5 {[%emt 0:04:30]} 27. Bf7+ {[%emt 0:03:30]} Kh7 {[%emt 0:04:30]} 28. Bxe8 {[%emt 0:00:30]} Qxf4 {[%emt 0:00:30]} 29. Qc2+ {[%emt 0:01:30]} Kh8 {[%emt 0:00:30]} 30. Bxc6 {[%emt 0:01:30]} bxc6 {[%emt 0:00:30]} 31. Qg6 {[%emt 0:01:30]} Bc7 {[%emt 0:00:30]} 32. Qg3 {[%emt 0:00:30]} Qf7 {[%emt 0:00:30]} 33. Qg2 {[%emt 0:01:04]} Rc8 {[%emt 0:00:30]} 34. Rd2 {[%emt 0:01:10]} Re8 {[%emt 0:00:30]} 35. Rfd1 {[%emt 0:02:39]} Qh5 {[%emt 0:01:30]} 36. Rd7 {[%emt 0:02:01]} Be5 {[%emt 0:01:30]} 37. Qg4 {[%emt 0:04:26]} Qxg4+ {[%emt 0:00:30]} 38. hxg4 {[%emt 0:00:30]} Bxc3 {[%emt 0:00:30]} 39. a3 {[%emt 0:00:38]} Re4 {[%emt 0:00:30]} 40. h3 {[%emt 0:00:27]} a5 {[%emt 0:00:30]} 41. bxa5 {[%emt 0:00:50]} Bxa5 {[%emt 0:00:30]} 42. R7d6 {[%emt 0:00:48]} c5 {[%emt 0:00:30]} 43. Rc6 {[%emt 0:00:30]} c4 {[%emt 0:00:30]} 44. Rc5 {[%emt 0:02:41]} Be1 {[%emt 0:00:00]} 45. Kf1 {[%emt 0:00:38]} Bc3 {[%emt 0:00:00]} 46. Rc1 {[%emt 0:01:14]} Bb2 {[%emt 0:00:30]} 47. R1xc4 {[%emt 0:00:12]} Rxc4 {[%emt 0:00:30]} 48. Rxc4 {[%emt 0:00:30]} Bxa3 {[%emt 0:00:00]} 49. Ke2 {[%emt 0:00:32]} Kg8 {[%emt 0:00:00]} 50. Rc7 {[%emt 0:00:30]} Bd6 {[%emt 0:00:00]} 51. Rd7 {[%emt 0:00:03]} Bf4 {[%emt 0:00:00]} 52. Kf3 {[%emt 0:00:00]} Be5 {[%emt 0:00:30]} 53. Ke4 {[%emt 0:00:21]} Bf6 {[%emt 0:00:30]} 54. Kf5 {[%emt 0:00:21]} Kf8 {[%emt 0:00:30]} 55. Kg6 {[%emt 0:00:48]} Be5 {[%emt 0:00:30]} 56. Rf7+ {[%emt 0:00:29]} Kg8 {[%emt 0:00:30]} 57. Re7 {[%emt 0:00:30]} Bf6 {[%emt 0:00:30]} 58. Re8# {[%emt 0:00:00]} 1-0

[Event "FIDE World Cadets GU12 2022"]
[Site "Batumi"]
[Date "2022.09.24"]
[Round "8.17"]
[White "Tynyshtyk, Diana"]
[Black "Gan, Emily Cathay"]
[Result "1/2-1/2"]
[ECO "B45"]
[WhiteElo "1373"]
[BlackElo "1550"]
[Annotator "NA RC COMBH"]
[PlyCount "113"]
[EventDate "2022.09.16"]
[EventType "swiss"]
[EventCountry "GEO"]
[SourceTitle "playchess.com"]
[Source "ChessBase"]
[SourceQuality "1"]
[TimeControl "5400+30"]

1. e4 {[%emt 0:08:00]} c5 {[%emt 0:01:00]} 2. Nf3 {[%emt 0:00:30]} e6 {[%emt 0:00:30]} 3. d4 {[%emt 0:00:30]} cxd4 {[%emt 0:00:30]} 4. Nxd4 {[%emt 0:00:00]} Nf6 {[%emt 0:00:30]} 5. Nc3 {[%emt 0:00:00]} Nc6 {[%emt 0:00:30]} 6. Ndb5 {[%emt 0:04:30]} Bb4 {[%emt 0:04:30]} 7. a3 {[%emt 0:00:00]} Bxc3+ {[%emt 0:06:30]} 8. Nxc3 {[%emt 0:00:00]} h6 {[%emt 0:00:30]} 9. Qd6 {[%emt 0:11:30]} Qe7 {[%emt 0:05:30]} 10. e5 {[%emt 0:11:30]} Qxd6 {[%emt 0:15:30]} 11. exd6 {[%emt 0:00:00]} Nd4 {[%emt 0:00:30]} 12. Bd3 {[%emt 0:02:00]} O-O {[%emt 0:15:30]} 13. Be3 {[%emt 0:02:30]} e5 {[%emt 0:01:30]} 14. Bxd4 {[%emt 0:06:30]} exd4 {[%emt 0:00:00]} 15. Nb5 {[%emt 0:03:30]} Ne8 {[%emt 0:01:00]} 16. O-O-O {[%emt 0:02:30]} a6 {[%emt 0:00:30]} 17. Nc7 {[%emt 0:05:30]} Nxc7 {[%emt 0:03:30]} 18. dxc7 {[%emt 0:00:00]} b5 {[%emt 0:04:30]} 19. Bf5 {[%emt 0:03:00]} g6 {[%emt 0:02:30]} 20. Bg4 {[%emt 0:00:30]} Ra7 {[%emt 0:03:30]} 21. Rxd4 {[%emt 0:00:30]} Rxc7 {[%emt 0:00:30]} 22. Rhd1 {[%emt 0:01:30]} f5 {[%emt 0:03:30]} 23. Bf3 {[%emt 0:01:30]} Kg7 {[%emt 0:01:30]} 24. Bd5 {[%emt 0:03:30]} Re8 {[%emt 0:03:30]} 25. Bf3 {[%emt 0:06:30]} Re5 {[%emt 0:01:30]} 26. h3 {[%emt 0:06:30]} Kf7 {[%emt 0:04:58]} 27. Rd6 {[%emt 0:01:30]} Kg7 {[%emt 0:01:41]} 28. g4 {[%emt 0:04:38]} fxg4 {[%emt 0:05:30]} 29. Bxg4 {[%emt 0:01:13]} Re7 {[%emt 0:00:45]} 30. R1d4 {[%emt 0:06:47]} h5 {[%emt 0:01:12]} 31. Bf3 {[%emt 0:02:46]} Re6 {[%emt 0:00:20]} 32. Be4 {[%emt 0:01:07]} Rc5 {[%emt 0:02:40]} 33. b4 {[%emt 0:02:49]} Rce5 {[%emt 0:00:42]} 34. Rxe6 {[%emt 0:01:11]} Rxe6 {[%emt 0:00:26]} 35. Bb7 {[%emt 0:00:31]} Bxb7 {[%emt 0:01:18]} 36. Rxd7+ {[%emt 0:00:30]} Kf6 {[%emt 0:00:30]} 37. Rxb7 {[%emt 0:00:00]} Rc6 {[%emt 0:00:00]} 38. Kd2 {[%emt 0:01:18]} Ke5 {[%emt 0:01:09]} 39. Re7+ {[%emt 0:00:57]} Kf5 {[%emt 0:00:55]} 40. c3 {[%emt 0:01:20]} Rd6+ {[%emt 0:00:42]} 41. Kc2 {[%emt 0:01:21]} h4 {[%emt 0:01:03]} 42. Rf7+ {[%emt 0:00:49]} Ke4 {[%emt 0:00:35]} 43. Rf8 {[%emt 0:00:11]} g5 {[%emt 0:01:37]} 44. Rf7 {[%emt 0:00:15]} Ke5 {[%emt 0:00:38]} 45. f3 {[%emt 0:00:45]} Rf6 {[%emt 0:02:09]} 46. Rxf6 {[%emt 0:00:30]} Kxf6 {[%emt 0:00:00]} 47. c4 {[%emt 0:00:18]} bxc4 {[%emt 0:02:13]} 48. a4 {[%emt 0:00:30]} Ke5 {[%emt 0:00:00]} 49. b5 {[%emt 0:00:43]} axb5 {[%emt 0:01:03]} 50. axb5 {[%emt 0:00:14]} Kd5 {[%emt 0:00:02]} 51. b6 {[%emt 0:00:42]} Kc6 {[%emt 0:00:32]} 52. Kc3 {[%emt 0:00:29]} Kxb6 {[%emt 0:00:00]} 53. Kxc4 {[%emt 0:00:30]} Kc6 {[%emt 0:00:00]} 54. Kd4 {[%emt 0:00:33]} Kd6 {[%emt 0:00:24]} 55. Ke4 {[%emt 0:00:00]} Ke6 {[%emt 0:00:28]} 56. f4 {[%emt 0:00:00]} g4 {[%emt 0:00:42]} 57. hxg4 {[%emt 0:00:24]} 1/2-1/2

[Event "FIDE World Cadets GU12 2022"]
[Site "Batumi"]
[Date "2022.09.24"]
[Round "8.18"]
[White "Derlich, Sarah Sima"]
[Black "Danielyan, Lilia"]
[Result "1-0"]
[ECO "B31"]
[WhiteElo "1490"]
[BlackElo "1299"]
[Annotator "NA RC COMBH"]
[PlyCount "81"]
[EventDate "2022.09.16"]
[EventType "swiss"]
[EventCountry "GEO"]
[SourceTitle "playchess.com"]
[Source "ChessBase"]
[SourceQuality "1"]
[TimeControl "5400+30"]

1. e4 {[%emt 0:01:00]} c5 {[%emt 0:01:00]} 2. Nf3 {[%emt 0:00:30]} Nc6 {[%emt 0:00:00]} 3. Bb5 {[%emt 0:00:30]} g6 {[%emt 0:00:00]} 4. O-O {[%emt 0:00:30]} Bg7 {[%emt 0:00:30]} 5. Re1 {[%emt 0:00:30]} e5 {[%emt 0:00:30]} 6. b3 {[%emt 0:04:30]} Nge7 {[%emt 0:00:30]} 7. Bb2 {[%emt 0:02:30]} d6 {[%emt 0:02:30]} 8. Nc3 {[%emt 0:01:30]} O-O {[%emt 0:00:30]} 9. Bxc6 {[%emt 0:15:30]} Nxc6 {[%emt 0:03:30]} 10. Nd5 {[%emt 0:00:30]} Ne7 {[%emt 0:03:30]} 11. c4 {[%emt 0:02:30]} Nxd5 {[%emt 0:00:30]} 12. exd5 {[%emt 0:04:30]} f5 {[%emt 0:05:30]} 13. d3 {[%emt 0:00:30]} g5 {[%emt 0:11:30]} 14. Nd2 {[%emt 0:10:30]} g4 {[%emt 0:05:30]} 15. f3 {[%emt 0:02:30]} h5 {[%emt 0:02:30]} 16. fxg4 {[%emt 0:09:30]} hxg4 {[%emt 0:02:30]} 17. g3 {[%emt 0:04:30]} Qg5 {[%emt 0:05:30]} 18. Qe2 {[%emt 0:03:30]} Bd7 {[%emt 0:02:30]} 19. Rf1 {[%emt 0:01:30]} Rae8 {[%emt 0:01:30]} 20. Rae1 {[%emt 0:01:30]} Qg6 {[%emt 0:03:30]} 21. Nb1 {[%emt 0:07:30]} f4 {[%emt 0:02:30]} 22. Nc3 {[%emt 0:03:30]} f3 {[%emt 0:01:30]} 23. Qc2 {[%emt 0:01:30]} Rf5 {[%emt 0:04:30]} 24. Ne4 {[%emt 0:01:30]} Kf7 {[%emt 0:01:30]} 25. Qd2 {[%emt 0:01:38]} b6 {[%emt 0:02:30]} 26. b4 {[%emt 0:01:28]} Rh5 {[%emt 0:06:30]} 27. Rf2 {[%emt 0:02:17]} Bf5 {[%emt 0:01:30]} 28. bxc5 {[%emt 0:01:31]} Bxe4 {[%emt 0:00:30]} 29. Rxe4 {[%emt 0:00:00]} bxc5 {[%emt 0:00:30]} 30. Qa5 {[%emt 0:01:33]} Re7 {[%emt 0:00:00]} 31. Bc1 {[%emt 0:03:27]} Bh6 {[%emt 0:03:00]} 32. Bxh6 {[%emt 0:01:50]} Qxh6 {[%emt 0:05:30]} 33. Qe1 {[%emt 0:02:07]} Qg6 {[%emt 0:01:30]} 34. Rb2 {[%emt 0:03:01]} Rh8 {[%emt 0:02:30]} 35. Qb1 {[%emt 0:04:24]} Qf5 {[%emt 0:00:30]} 36. Rf2 {[%emt 0:01:39]} Kg6 {[%emt 0:04:11]} 37. d4 {[%emt 0:00:57]} cxd4 {[%emt 0:01:28]} 38. Rxg4+ {[%emt 0:00:30]} Kf6 {[%emt 0:00:47]} 39. Rxf3 {[%emt 0:00:00]} Rh5 {[%emt 0:01:16]} 40. Rxf5+ {[%emt 0:00:14]} Rxf5 {[%emt 0:00:00]} 41. Qb8 {[%emt 0:00:45]} 1-0

[Event "FIDE World Cadets GU12 2022"]
[Site "Batumi"]
[Date "2022.09.24"]
[Round "8.19"]
[White "Sordia, Marta"]
[Black "Hariharan, Shambavi"]
[Result "1-0"]
[ECO "B12"]
[WhiteElo "1363"]
[BlackElo "1465"]
[Annotator "NA RC COMBH"]
[PlyCount "95"]
[EventDate "2022.09.16"]
[EventType "swiss"]
[EventCountry "GEO"]
[SourceTitle "playchess.com"]
[Source "ChessBase"]
[SourceQuality "1"]
[TimeControl "5400+30"]

1. e4 {[%emt 0:01:00]} c6 {[%emt 0:01:00]} 2. d4 {[%emt 0:00:30]} d5 {[%emt 0:00:30]} 3. e5 {[%emt 0:00:30]} c5 {[%emt 0:00:30]} 4. dxc5 {[%emt 0:00:00]} Nc6 {[%emt 0:00:00]} 5. Nf3 {[%emt 0:00:00]} Bg4 {[%emt 0:01:00]} 6. c3 {[%emt 0:00:00]} Bxf3 {[%emt 0:00:30]} 7. Qxf3 {[%emt 0:02:00]} Nxe5 {[%emt 0:00:30]} 8. Bb5+ {[%emt 0:00:30]} Nc6 {[%emt 0:00:30]} 9. c4 {[%emt 0:02:30]} e6 {[%emt 0:07:30]} 10. Nc3 {[%emt 0:02:30]} Nge7 {[%emt 0:05:30]} 11. Bg5 {[%emt 0:04:30]} f6 {[%emt 0:08:30]} 12. Bf4 {[%emt 0:03:30]} a6 {[%emt 0:08:30]} 13. Ba4 {[%emt 0:07:30]} d4 {[%emt 0:09:30]} 14. O-O-O {[%emt 0:03:30]} e5 {[%emt 0:08:30]} 15. Ne4 {[%emt 0:05:30]} Ng6 {[%emt 0:07:30]} 16. Bg3 {[%emt 0:05:30]} Rc8 {[%emt 0:06:30]} 17. h4 {[%emt 0:16:30]} Be7 {[%emt 0:09:30]} 18. h5 {[%emt 0:00:30]} Nf8 {[%emt 0:00:30]} 19. Qg4 {[%emt 0:02:30]} Rg8 {[%emt 0:03:30]} 20. f4 {[%emt 0:04:30]} Qd7 {[%emt 0:01:59]} 21. Qf3 {[%emt 0:04:30]} f5 {[%emt 0:03:26]} 22. Nd6+ {[%emt 0:12:30]} Bxd6 {[%emt 0:00:52]} 23. cxd6 {[%emt 0:00:30]} e4 {[%emt 0:00:53]} 24. Qa3 {[%emt 0:00:30]} Ne6 {[%emt 0:02:35]} 25. c5 {[%emt 0:02:17]} d3 {[%emt 0:02:11]} 26. Rhe1 {[%emt 0:02:10]} Ned4 {[%emt 0:02:40]} 27. Qxd3 {[%emt 0:04:22]} b5 {[%emt 0:05:39]} 28. Bb3 {[%emt 0:02:43]} Kf8 {[%emt 0:01:24]} 29. Qc3 {[%emt 0:01:11]} Nxb3+ {[%emt 0:00:37]} 30. Qxb3 {[%emt 0:00:53]} Na5 {[%emt 0:00:55]} 31. Qd5 {[%emt 0:00:16]} Nb7 {[%emt 0:01:16]} 32. Bf2 {[%emt 0:00:44]} Nd8 {[%emt 0:00:53]} 33. g4 {[%emt 0:00:57]} g6 {[%emt 0:00:59]} 34. hxg6 {[%emt 0:01:42]} hxg6 {[%emt 0:00:24]} 35. gxf5 {[%emt 0:00:36]} gxf5 {[%emt 0:00:21]} 36. Rg1 {[%emt 0:00:00]} Qf7 {[%emt 0:00:37]} 37. Qxf7+ {[%emt 0:01:50]} Kxf7 {[%emt 0:00:30]} 38. Rxg8 {[%emt 0:00:30]} Kxg8 {[%emt 0:00:30]} 39. Rd5 {[%emt 0:00:00]} Kg7 {[%emt 0:00:46]} 40. Rxf5 {[%emt 0:00:00]} b4 {[%emt 0:00:31]} 41. Kd2 {[%emt 0:00:56]} a5 {[%emt 0:00:48]} 42. Rd5 {[%emt 0:00:16]} Nc6 {[%emt 0:00:28]} 43. Bh4 {[%emt 0:00:29]} Nd8 {[%emt 0:00:24]} 44. Bxd8 {[%emt 0:00:30]} Rxd8 {[%emt 0:00:04]} 45. c6 {[%emt 0:00:11]} Kf6 {[%emt 0:00:30]} 46. c7 {[%emt 0:00:30]} Rc8 {[%emt 0:00:30]} 47. d7 {[%emt 0:00:30]} Rxc7 {[%emt 0:00:00]} 48. d8=Q+ {[%emt 0:00:00]} 1-0